Cogmind - Beta 12 @@@ ROGUE MODE // 2023.12.23 @ 13:42:03 Player: Ischenous Result: Destroyed by G-47 Trooper with Particle Gun Performance ------------- Evolutions (0) 0 Regions Visited (2) 400 Robots Destroyed (7) 35 Value Destroyed (180) 180 Prototype IDs (0) 0 Alien Tech Used (0) 0 Bonus (0) 0 TOTAL SCORE: 615 Bonus ------- None Cogmind --------- Core Integrity 0/250 Matter 288/300 Energy 97/100 System Corruption 0% Temperature Cool (9) Movement Flying (37) Location -10/Mines Parts ------- > --- POWER (1) -------- (None) > --- PROPULSION (2) --- Flight Unit Flight Unit > --- UTILITY (2) ------ Small Storage Unit ECM Suite > --- WEAPON (2) ------- Light Assault Rifle > --- INVENTORY (8) ---- Ion Engine Light Ion Engine Aluminum Leg Wheel Wheel Flight Unit Mining Laser Peak State ------------ > --- POWER ------------ Light Ion Engine > --- PROPULSION ------- Flight Unit Flight Unit > --- UTILITY ---------- Small Storage Unit ECM Suite > --- WEAPON ----------- Light Assault Rifle > --- INVENTORY -------- Ion Engine Light Ion Engine Aluminum Leg Wheel Wheel Flight Unit [Rating: 6] Favorites ----------- Power Light Ion Engine Engine Light Ion Engine Propulsion Flight Unit Wheel Wheel Flight Unit Flight Unit Utility Small Storage Unit Device ECM Suite Storage Small Storage Unit Weapon Light Assault Rifle Energy Gun EM Pulse Gun Ballistic Gun Light Assault Rifle Build | -11 -10 -10 ------- Run | Jun Mat Min Slots Evolved . | . . . Power . | . . . Propulsion . | . . . Utility . | . . . Weapon . | . . . Parts Attached 18 | 5 13 . Power 3 | 1 2 . Engine 3 | 1 2 . Core . | . . . Reactor . | . . . Propulsion 9 | 2 7 . Treads . | . . . Leg . | . . . Wheel 4 | 2 2 . Hover . | . . . Flight 5 | . 5 . Utility 2 | 1 1 . Device 1 | . 1 . Storage 1 | 1 . . Processor . | . . . Hackware . | . . . Protection . | . . . Artifact . | . . . Weapon 4 | 1 3 . Energy Gun 3 | 1 2 . Energy Cannon . | . . . Ballistic Gun 1 | . 1 . Ballistic Cannon . | . . . Launcher . | . . . Special Weapon . | . . . Impact Weapon . | . . . Slashing Weapon . | . . . Piercing Weapon . | . . . Special Melee Weapon . | . . . Unidentified Prototypes . | . . . Parts Lost 6 | . 5 1 Power 2 | . 1 1 Propulsion 1 | . 1 . Utility . | . . . Weapon 3 | . 3 . Highest Loss Streak 4 | . 4 1 To Critical Strikes . | . . . Average Slot Usage (%) 73 | . 67 84 Engine 12 | . 12 13 Wheel 8 | . 12 . Flight 16 | . 10 28 Device 5 | . 1 14 Storage 14 | . 14 14 Energy Gun 6 | . 10 . Ballistic Gun 8 | . 5 14 Naked Turns . | . . . Heaviest Build 14 | 12 14 11 Greatest Support 26 | 10 26 8 Greatest Overweight (x) 2 | 1 2 1 Average Overweight (x) . | . . 1 Largest Inventory Capacity 8 | 8 8 8 Average Capacity 7 | 6 8 8 Most Carried 7 | 5 7 7 Average Carried 4 | 3 4 6 Final Capacity 8 | 8 8 8 Final Carried 7 | 4 6 7 Class Distribution -------------------- 57% | Scavenger-Mutant 42% | Mutant Dominant Class ---------------- Mutant | -10/Materials Scavenger-Mutant | -10/Mines Resources | -11 -10 -10 ----------- Run | Jun Mat Min Matter Collected 357 | 237 103 17 Remotely . | . . . Salvage Created 230 | . 193 37 Parts 17 | . 14 3 Haulers Intercepted . | . . . Recyclers Shooed . | . . . Parts Field Recycled . | . . . Retrieved Matter . | . . . Parts Self-Destructed . | . . . Prevented . | . . . Kills | -11 -10 -10 ------- Run | Jun Mat Min Combat Hostiles Destroyed 6 | . 5 1 Guns 6 | . 5 1 Classes Destroyed 3 | . 3 . Worker 1 | . 1 . Swarmer 2 | . 2 . Grunt 4 | . 3 1 Best Kill Streak 3 | . 3 1 Combat Bots Only 2 | . 2 1 Max Kills in Single Turn 1 | . 1 1 Gunslinging . | . . . Exploded . | . . . Melee . | . . . Uniques/NPCs Destroyed . | . . . Combat | -11 -10 -10 -------- Run | Jun Mat Min Damage Taken 799 | . 515 284 Core 267 | . 107 160 Absorbed by Shields . | . . . Core Remaining (%) 100 | 100 . . Volleys Fired 40 | 2 32 6 Largest 2 | 1 2 1 Hottest 90 | 40 90 20 Shots Fired 50 | 2 42 6 Gun 50 | 2 42 6 Cannon . | . . . Launcher . | . . . Special . | . . . Kinetic 10 | . 4 6 Thermal 28 | . 28 . Explosive . | . . . Electromagnetic 12 | 2 10 . Robot Hit Streak 12 | 1 12 7 Robot Miss Streak 3 | 1 3 . Penetration Max . | . . . Secondary Targets 1 | . 1 . Max Gunslinging Chain 1 | . 1 . Shots Hit Robots 35 | 1 28 6 Core Hits 15 | . 11 4 Critical Kills . | . . . Critical Parts Destroyed . | . . . Critical Strikes . | . . . Melee Attacks . | . . . Impact . | . . . Slashing . | . . . Piercing . | . . . Sneak Attacks . | . . . Combat Hostiles . | . . . Follow-up Attacks . | . . . Damage Inflicted 444 | 13 359 72 Guns 402 | 13 344 45 Cannons . | . . . Explosions . | . . . Melee . | . . . Ramming 42 | . 15 27 Kinetic 58 | . 13 45 Thermal 270 | . 270 . Explosive . | . . . Electromagnetic 74 | 13 61 . Impact . | . . . Slashing . | . . . Piercing . | . . . Highest Corruption . | . . . Average Corruption . | . . . Corruption Purged . | . . . Corruption Blocked . | . . . Overload Shots . | . . . Overflow Damage . | . . . Projectiles . | . . . Explosions . | . . . Melee . | . . . Knockbacks . | . . . Impact . | . . . Kinetic . | . . . Secondary . | . . . Self-Inflicted Damage 17 | . 6 11 Shots . | . . . Rammed 14 | . 4 10 Targets Rammed 14 | . 4 10 Kicked . | . . . Crushed . | . . . Highest Temperature 356 | . 356 12 Average Temperature 150 | . 163 5 Received Heat Transfer 396 | . 240 156 Effects 1 | . 1 . Matter Decay 1 | . 1 . Siege Activations . | . . . Robots Corrupted . | . . . Combat Hostiles . | . . . Parts Fried . | . . . Impact Corruptions . | . . . Robots Melted . | . . . Combat Hostiles . | . . . Parts Melted 1 | . 1 . Heat Transferred 671 | . 671 . Parts Sabotaged . | . . . Parts Stolen . | . . . Parts Stripped . | . . . Power Chain Reactions . | . . . Missiles Intercepted . | . . . Alert | -11 -10 -10 ------- Run | Jun Mat Min Peak Influence 125 | . 125 68 Initial 48 | . . 48 Average 62 | . 73 62 Maximum Alert Level . | . . . Low Security (%) 100 | 100 100 100 Level 1 . | . . . Level 2 . | . . . Level 3 . | . . . Level 4 . | . . . Level 5 . | . . . High Security . | . . . Max Security . | . . . Squads Dispatched . | . . . Investigation . | . . . Extermination . | . . . Reinforcement . | . . . Assault . | . . . Garrison . | . . . Intercept . | . . . Searches Triggered . | . . . Construction Impeded . | . . . Haulers Reinforced . | . . . Active Scanning Responses . | . . . Cargo Convoy Interrupts . | . . . Stealth | -11 -10 -10 --------- Run | Jun Mat Min Distress Signals . | . . . Communications Jammed . | . . . Distress Signals . | . . . Times Spotted 13 | . 9 4 Peak Tracking Total 5 | . 5 2 Tactical Retreats . | . . . Traps | -11 -10 -10 ------- Run | Jun Mat Min Traps Triggered . | . . . Indirectly . | . . . Trap Hack Attempts . | . . . Triggered . | . . . Disarmed . | . . . Reprogrammed . | . . . Reused . | . . . Traps Extracted . | . . . Installed . | . . . Triggered . | . . . Machines | -11 -10 -10 ---------- Run | Jun Mat Min Machines Disabled 1 | . 1 . Max in Single Turn 1 | . 1 . Machines Repaired . | . . . Machines Sabotaged . | . . . Overloaded Fab Kills . | . . . Hacking | -11 -10 -10 --------- Run | Jun Mat Min Machines Accessed 1 | . 1 . Terminals 1 | . 1 . Fabricators . | . . . Repair Stations . | . . . Recycling Units . | . . . Scanalyzers . | . . . Garrison Access . | . . . Total Hacks 2 | . 2 . Successful 1 | . 1 . Failed 1 | . 1 . Catastrophic . | . . . Database Lockouts . | . . . Manual . | . . . Terminals 2 | . 2 . Fabricators . | . . . Repair Stations . | . . . Recycling Units . | . . . Scanalyzers . | . . . Garrison Access . | . . . Terminal Hacks 1 | . 1 . Locate Traps 1 | . 1 . Fabricator Hacks . | . . . Repair Station Hacks . | . . . Recycling Unit Hacks . | . . . Scanalyzer . | . . . Garrison Access Hacks . | . . . Unauthorized Hacks . | . . . Terminals . | . . . Fabricators . | . . . Repair Stations . | . . . Recycling Units . | . . . Scanalyzers . | . . . Garrison Access . | . . . Data Cores Recovered . | . . . Used . | . . . Hacking Detections 1 | . 1 . Full Trace Events . | . . . Feedback Events . | . . . Feedback Blocked . | . . . Robot Schematics Acquired . | . . . Robots Built . | . . . Authchips . | . . . Time . | . . . Total Robot Build Rating . | . . . Part Schematics Acquired . | . . . Parts Built . | . . . Authchips . | . . . Time . | . . . Total Part Build Rating . | . . . Parts Repaired . | . . . Time . | . . . Parts Recycled . | . . . Recycled Matter . | . . . Retrieved Matter . | . . . Retrieved Components . | . . . Parts Scanalyzed . | . . . Part Schematics Acquired . | . . . Parts Damaged . | . . . Bothacking | -11 -10 -10 ------------ Run | Jun Mat Min Used RIF Installer . | . . . Robots Hacked . | . . . Non-combat . | . . . Combat . | . . . Robot Hacks Applied . | . . . Relay Couplers Released . | . . . Fabnet Peak Effective % . | . . . Robots Rewired . | . . . Allies Hacked . | . . . Hacks Repelled . | . . . Allies | -11 -10 -10 -------- Run | Jun Mat Min Total Allies . | . . . Largest Group . | . . . Highest-Rated Group . | . . . Highest-Rated Ally . | . . . Total Orders . | . . . Ally Attacks . | . . . Total Damage . | . . . Kills . | . . . Allies Corrupted . | . . . Allies Melted . | . . . Intel | -11 -10 -10 ------- Run | Jun Mat Min Robot Analysis Total . | . . . Derelict Logs Recovered 1 | . . 1 Drone Launches . | . . . Drone Recoveries . | . . . Exploration | -11 -10 -10 ------------- Run | Jun Mat Min Turns Passed 560 | 64 334 162 Spaces Moved 364 | 65 187 112 Core 24 | 24 . . Treads . | . . . Legs . | . . . Wheels 124 | 41 83 . Hover . | . . . Flight 216 | . 104 112 Fastest Speed 50 | 50 80 117 Average Speed 101 | 71 103 117 Slowest Speed 205 | 95 205 117 Overloaded Moves . | . . . Propulsion Burnouts . | . . . Robots Hopped . | . . . Cave-ins Triggered . | . . . Exploration Rate (%) 21 | 3 29 32 Regions Visited 2 Branch Regions 1 Pre-discovered Areas 1 | . . 1 Known Exits Taken . | . . . Unknown Exits Taken 2 | 1 1 . Scrap Searched 1 | . . 1 Spaces Dug . | . . . Terrain Destroyed . | . . . Melee . | . . . Projectile . | . . . AOE . | . . . Terrain Rammed . | . . . Walls Destroyed . | . . . Machines Disabled . | . . . Actions | -11 -10 -10 --------- Run | Jun Mat Min Total 499 | 80 283 136 Wait 46 | . 39 7 Move 362 | 64 186 112 Hop . | . . . Pick Up 18 | 8 9 1 Fast Attach . | . . . Attach 12 | 5 7 . Detach 1 | 1 . . Swap 6 | . 6 . Drop . | . . . Fire 40 | 2 32 6 Melee . | . . . Ram 14 | . 4 10 Kick . | . . . Crush . | . . . Escape Stasis . | . . . Rewire . | . . . Trap . | . . . Miscellaneous . | . . . Route ------- -11/Junkyard -10/Materials (discovered 2 exits: [*Mat] / [*Min]) -10/Mines History --------- Turn | Location | Event 6 | -11/Junkyard | Discovered new exit (range 15) 65 | -11/Junkyard | Entered Materials 208 | -10/Materials | Lost 4 parts (1p1n2w) 285 | -10/Materials | Discovered new exit (range 16) 304 | -10/Materials | Discovered new exit (range 15) 399 | -10/Materials | Entered Mines 416 | -10/Mines | Assembled infested the area 421 | -10/Mines | Assisted by a Guerilla fighting off Assembled 446 | -10/Mines | Core integrity fell below 50% 501 | -10/Mines | Learned location of Zion (-6) 518 | -10/Mines | Core integrity fell below 20% 552 | -10/Mines | Build established: Scavenger-Mutant 561 | -10/Mines | Destroyed by G-47 Trooper with Particle Gun Last Messages --------------- 00426_ HV Slug penetrates G-47 Trooper. 00426_ Slammed into G-47 Trooper. 00428_ G-47 Trooper suffers critical hit (Destroy). 00430_ HV Slug penetrates G-47 Trooper. 00432_ G-47 Trooper destroyed. 00437_ Searching scrap... 00437_ Found Mining Laser. 00437_ Found 17 Matter. 00438_ Acquired 17 matter. 00439_ Acquired Mining Laser. 00446_ G-34 Mercenary destroyed. 00450_ K-01 Serf collects debris. 00501_ Acquired derelict log, extracted data. World map updated: -6/Zion. 00508_ Slammed into G-47 Trooper. 00512_ Slammed into G-34 Mercenary. 00513_ Destabilizing: System interference. 00513_ Lgt. Assault Rifle temporarily disabled. 00514_ Slammed into G-34 Mercenary. 00559_ Lgt. Ion Engine destroyed. Map ----- +----------------------------------------------------+ | ?????????????????????????????????? | | ?????????????????????????????????? | | ?????????????????????????????????? | | ?????????????????????????????????? | | ?????????????????????????????????? | | ?????????????????????? ?????????? | | ?????????????????????? ?????????? | | ?????????????????????? ?????????? | | ?????????????????????# ?????????? | | ?????????????????????# #????????? | | ?????????????????????# #????????? | | ?????????????????????# #????????# | | ?????????????????????# #????????# | | ?????????????????????# #????????# | | ?????????????????????# #????????# | | ?????????????????????# #????????? | | ????####?????????????# #????????? | | ???## ##????????????# #????????? | | ??## ##????###????# ########## | | ??# ##??## ##???# | | ??# #### #???# ########## | | ??# ## ##### #????????# | | ??# """ #????????# | | ??# """ #### #??????# | | ??# """g #??#### #??????? | | ??## g @ #????? #??????? | | ???#### ## #????#??????? | | ??????###### #??????????? | | ???????????# ?????????? | | ???????????# ????????? | | ???????????## ### ####???????? | | ????????????####??# ##??????????? | | ???????????????????###???????????? | | ?????????????????????????????????? | | ?????????????????????????????????? | | | | | | | | | | | | | | | | | | | | | | | | | | | | | | | +----------------------------------------------------+ Best States ------------- Heat Dissipation 25 Energy Generation 10 Energy Capacity 250 Matter Stores 300 Matter Capacity 300 Sight Range 16 Terrain Scan Density 10 ECM Strength 1 Evasion (%) 50 Item Schematics ----------------- None Robot Schematics ------------------ None Fabricated ------------ Nothing Alien Tech Used ----------------- None Achievements -------------- None Challenges ------------ None Game ------ Seed ArmorSiegeMagmablaster Manual? 0 Play Time 00:09:45 Cumulative 108.2 hours Start 2023.12.23 @ 13:26:06 End 2023.12.23 @ 13:42:03 Sessions 1 Manual Loads 0 Difficulty Rogue Special Mode None Game No. 95 Rogue 95 Adventurer 0 Explorer 0 Win Type - Total 0 Types 0/0/0/0/0/0/0/0/0 Lore% 35 Gallery% 39 Achievement% 30 Wizard Run 0 Options --------- ASCII 0 Keyboard 0 Movement Arrows Keybinds 0 Fullscreen 1 Font 18/SmallcapsGlow Map View 76x50 Tactical HUD 1 Map Filters NONE Filters NONE Steam 1 RUN: 28f3aaa3-e650-48e9-b774-b780300e9f54